fUSD/lending_fUSD_20240609
["ID","MTS","AMOUNT","RATE_DAILY","PERIOD"]
[328911178,1717975862411,-151.0,0.0002929,7]
[328911179,1717975862421,-151.0,0.0002929,7]
[328911180,1717975862434,-151.0,0.0002929,7]
[328911181,1717975862443,-151.0,0.0002929,7]
[328911182,1717975862453,-151.0,0.0002929,7]
[328911183,1717975862464,-151.0,0.0002929,7]
[328911184,1717975862474,-151.0,0.0002929,7]
[328911185,1717975862484,-151.0,0.0002929,7]
[328911186,1717975862494,-151.0,0.0002929,7]
[328911187,1717975862505,-151.0,0.0002929,7]
[328911188,1717975862515,-154.057879,0.0002929,7]
[328911189,1717975862525,-151.0,0.0002929,7]
[328911190,1717975862535,-3839.7606481,0.0002929,2]
[328911191,1717975862546,-3259.6272878,0.0002929,2]
[328911192,1717975862556,-2679.4939274,0.0002929,2]
[328911193,1717975862566,-2099.3605671,0.0002929,2]
[328911194,1717975862576,-1519.2272068,0.0002929,2]
[328911195,1717975862586,-618.86,0.00029297,2]
[328911196,1717975862597,-13715.94076326,0.00029297,2]
[328911197,1717975862607,-210.68785637,0.00029298,2]
[328911198,1717975862616,-324.73694123,0.00029298,2]
[328911199,1717975862626,-941.00828255,0.00029298,2]
[328911200,1717975862636,-158.96899296,0.00029298,2]
[328911201,1717975862646,-500.0,0.00029298,3]
[328911202,1717975862656,-16000.0,0.00029298,3]
[328911203,1717975862666,-157.061007,0.00029298,24]
[328911204,1717975862679,-835.22,0.00029298,4]
[328911205,1717975862689,-1591.86,0.00029298,4]
[328911206,1717975862699,-173.178498,0.00029298,7]
[328911207,1717975862709,-225.565191,0.00029298,7]
[328911208,1717975862719,-151.0,0.00029298,7]
[328911209,1717975862729,-500.0,0.00029298,4]
[328911210,1717975862738,-500.0,0.00029298,4]
[328911211,1717975862748,-659.53,0.00029298,4]
[328911212,1717975862759,-1000.0,0.00029298,2]
[328911213,1717975862769,-203.30376107,0.00029299,2]
[328911214,1717975862780,-835.22,0.00029299,4]
[328911215,1717975862790,-835.22,0.00029299,4]
[328911216,1717975862801,-835.22,0.00029299,4]
[328911217,1717975862810,-835.22,0.00029299,4]
[328911218,1717975862820,-835.39453337,0.00029299,4]
[328911219,1717975862830,-1591.86,0.00029299,4]
[328911220,1717975862840,-1591.86,0.00029299,4]
[328911221,1717975862849,-1591.86,0.00029299,4]
[328911222,1717975862859,-1591.86,0.00029299,4]
[328911223,1717975862869,-1591.89883081,0.00029299,4]
[328911224,1717975862879,-268.27843011,0.00029299,4]
[328911225,1717975862889,-500.0,0.00029299,4]
[328911226,1717975862898,-592.4707616,0.00029299,4]
[328911227,1717975862909,-618.86,0.00029299,2]
[328911228,1717975862919,-618.86,0.00029299,2]
[328911229,1717975862929,-618.86,0.00029299,2]
[328911230,1717975862939,-618.86,0.00029299,2]
[328911231,1717975862949,-618.86,0.00029299,2]
[328911232,1717975862959,-618.86,0.00029299,2]
[328911233,1717975862970,-619.00394659,0.00029299,2]
[328911234,1717975862980,-659.53,0.00029299,4]
[328911235,1717975862990,-659.53,0.00029299,4]
[328911236,1717975863000,-659.53,0.00029299,4]
[328911237,1717975863010,-659.53,0.00029299,4]
[328911238,1717975863019,-659.71,0.00029299,4]
[328911239,1717975863029,-289.45799692,0.00029299,2]
[328911240,1717975863039,-589.49206888,0.000293,5]
[328911241,1717975863049,-10068779.37502343,0.000293,5]
[328911242,1717975863059,-300.96968926,0.000293,2]
[328911243,1717975863070,-691.0,0.000293,2]
[328911244,1717975863080,-190.0,0.000293,13]
[328911245,1717975863090,-488.0,0.000293,13]
[328911246,1717975863100,-691.0,0.000293,2]
[328911247,1717975863114,-345.0,0.000293,2]
[328911248,1717975863125,-2000.0,0.000293,2]
[328911249,1717975863135,-20100.0,0.000293,2]
[328911250,1717975863145,-160.0,0.000293,2]
[328911251,1717975863158,-453.46403564,0.000293,7]
[328911252,1717975863168,-446.22492722,0.000293,2]
[328911253,1717975863179,-1042.33917751,0.000293,2]
[328911254,1717975863188,-1203.42195458,0.000293,2]
[328911255,1717975863198,-4758.21996184,0.000293,2]
[328911256,1717975863208,-205.0,0.000293,2]
[328911257,1717975863218,-207.0,0.000293,2]
[328911258,1717975863228,-2000.0,0.000293,2]
[328911259,1717975863238,-1003.0,0.000293,18]
[328911260,1717975863248,-2778.93,0.000293,2]
[328911261,1717975863257,-3323.85,0.000293,2]
[328911262,1717975863268,-2101.06484702,0.000293,2]
[328911263,1717975863277,-151.0,0.000293,7]
[328911264,1717975863288,-86926.77990456,0.000293,2]
[328911265,1717975863297,-800.9088,0.000293,2]
[328911266,1717975863307,-800.9088,0.000293,2]
[328911267,1717975863316,-350.0,0.000293,2]
[328911268,1717975863326,-151.0,0.000293,7]
[328911269,1717975863336,-497.519702,0.000293,7]
[328911270,1717975863346,-497.519702,0.000293,7]
[328911271,1717975863356,-151.0,0.000293,7]
[328911272,1717975863366,-151.0,0.000293,7]
[328911273,1717975863375,-434.5807,0.000293,2]
[328911274,1717975863385,-434.5807,0.000293,2]
[328911275,1717975863394,-151.0,0.000293,7]
[328911276,1717975863403,-151.0,0.000293,7]
[328911277,1717975863413,-151.0,0.000293,7]
[328911278,1717975863422,-151.0,0.000293,7]
[328911279,1717975863432,-151.0,0.000293,7]
[328911280,1717975863441,-151.0,0.000293,7]
[328911281,1717975863451,-175.738466,0.000293,7]
[328911282,1717975863460,-150.0,0.000293,6]
[328911283,1717975863470,-155.83005,0.000293,7]
[328911284,1717975863479,-842.7676,0.000293,2]
[328911285,1717975863488,-842.7676,0.000293,2]
[328911286,1717975863498,-151.0,0.000293,7]
[328911287,1717975863507,-1008.2385534,0.000293,2]
[328911288,1717975863517,-380.143332,0.000293,7]
[328911289,1717975863527,-181.36342,0.000293,7]
[328911290,1717975863537,-380.143332,0.000293,7]
[328911291,1717975863547,-3932.7350307,0.00029305,2]
[328911292,1717975863558,-4419.8940084,0.00029305,2]
[328911293,1717975863583,-4875.98,0.00029308,2]
[328911294,1717975863593,-4947.11,0.0002931,2]
[328911295,1717975863603,-150.0,0.00029325,7]
[328911296,1717975863612,-150.0,0.00029333,7]
[328911297,1717975863623,-150.0,0.00029342,7]
[328911298,1717975863632,-166.66666666,0.00029347,2]
[328911299,1717975863642,-15084.60998741,0.00029356,2]
[328911300,1717975863651,-150.0,0.00029386,7]
[328911301,1717975863660,-150.0,0.00029386,7]
[328911302,1717975863670,-150.0,0.00029386,7]
[328911303,1717975863679,-150.0,0.00029397,7]
[328911304,1717975863689,-150.0,0.000294,7]
[328911305,1717975863699,-500.0,0.000294,2]
[328911306,1717975863708,-1989.19135126,0.000294,10]
[328911307,1717975863718,-1989.19135123,0.000294,10]
[328911308,1717975863727,-1989.19135123,0.000294,10]
[328911309,1717975863737,-152.0,0.0002941,18]
[328911310,1717975863746,-5004.64459068,0.0002943,2]
[328911311,1717975863757,-1989.19135123,0.00029433,10]
[328911312,1717975863766,-150.0,0.00029448,7]
[328911313,1717975863775,-150.0,0.00029452,7]
[328911314,1717975863784,-203.0,0.0002946,2]
[328911315,1717975863794,-217.0,0.0002946,2]
[328911316,1717975863803,-230.0,0.0002946,2]
[328911317,1717975863812,-150.0,0.00029466,7]
[328911318,1717975863821,-705.08,0.000295,2]
[328911319,1717975863831,-500.0,0.000295,2]
[328911320,1717975863840,-226.62818763,0.000295,3]
[328911321,1717975863850,-9352.41737688,0.000295,2]
[328911322,1717975863859,-2215.84,0.000295,2]
[328911323,1717975863868,-726.718535,0.000295,2]
[328911324,1717975863878,-2110.0,0.000295,15]
[328911325,1717975863887,-1117.021663,0.000295,2]
[328911326,1717975863897,-679.996803,0.000295,2]
[328911327,1717975863906,-150.0,0.00029507,7]
[328911328,1717975863915,-150.0,0.00029509,7]
[328911329,1717975863925,-1989.19135123,0.00029511,10]
[328911330,1717975863937,-151.48930029,0.00029517,2]
[328911331,1717975863947,-150.0,0.00029533,7]
[328911332,1717975863957,-15084.60998741,0.00029537,2]
[328911333,1717975863966,-150.0,0.0002954,7]
[328911334,1717975863976,-5004.94,0.0002955,2]
[328911335,1717975863986,-155.60440641,0.00029558,2]
[328911336,1717975863996,-150.0,0.00029562,7]
[328911337,1717975864005,-150.0,0.0002957,7]
[328911338,1717975864015,-156.22202044,0.00029571,2]
[328911339,1717975864024,-153.57981247,0.00029576,2]
[328911340,1717975864034,-153.62453956,0.00029583,2]
[328911341,1717975864044,-153.5624776,0.00029584,2]
[328911342,1717975864055,-1989.19135123,0.00029589,10]
[328911343,1717975864064,-153.57981254,0.00029592,2]
[328911344,1717975864074,-150.0,0.000296,7]
[328911345,1717975864085,-1572.67,0.000296,2]
[328911346,1717975864094,-1090.077803,0.000296,2]
[328911347,1717975864106,-1675.532495,0.000296,2]
[328911348,1717975864116,-1019.995205,0.000296,2]
[328911349,1717975864126,-500.0,0.000296,2]
[328911350,1717975864136,-5000.0,0.00029605,2]
[328911351,1717975864146,-150.0,0.00029616,7]
[328911352,1717975864156,-150.0,0.00029632,7]
[328911353,1717975864166,-150.0,0.00029646,2]
[328911354,1717975864176,-150.0,0.00029666,7]
[328911355,1717975864187,-1989.19135123,0.00029667,11]
[328911356,1717975864197,-150.0,0.00029671,7]
[328911357,1717975864208,-770.58223187,0.00029682,7]
[328911358,1717975864218,-3469.15430869,0.00029686,7]
[328911359,1717975864228,-150.0,0.00029693,7]
[328911360,1717975864238,-150.0,0.00029693,7]
[328911361,1717975864248,-150.0,0.00029693,7]
[328911362,1717975864257,-11664.1888965,0.000297,2]
[328911363,1717975864267,-432.199,0.000297,4]
[328911364,1717975864277,-432.2,0.000297,4]
[328911365,1717975864287,-432.2,0.000297,4]
[328911366,1717975864297,-432.2,0.000297,4]
[328911367,1717975864307,-432.2,0.000297,4]
[328911368,1717975864316,-500.0,0.000297,2]
[328911369,1717975864326,-1453.437071,0.000297,2]
[328911370,1717975864336,-4019.3357,0.000297,2]
[328911371,1717975864346,-4000.0,0.000297,2]
[328911372,1717975864356,-2234.043327,0.000297,2]
[328911373,1717975864366,-1359.993607,0.000297,2]
[328911374,1717975864375,-4000.0,0.000297,2]
[328911375,1717975864385,-4000.0,0.000297,2]
[328911376,1717975864395,-200.0,0.000297,10]
[328911377,1717975864406,-280.0,0.000297,2]
[328911378,1717975864416,-688.96957899,0.00029702,7]
[328911379,1717975864426,-3469.15430869,0.00029708,7]
[328911380,1717975864436,-770.58223187,0.00029715,7]
[328911381,1717975864446,-15084.60998741,0.00029719,2]
[328911382,1717975864456,-770.58223187,0.00029721,7]
[328911383,1717975864465,-150.0,0.00029726,7]
[328911384,1717975864475,-286.09255549,0.00029731,7]
[328911385,1717975864484,-150.0,0.00029733,7]
[328911386,1717975864494,-286.09255549,0.00029735,7]
[328911387,1717975864504,-899.98408803,0.00029737,7]
[328911388,1717975864514,-1989.19135123,0.00029744,11]
[328911389,1717975864523,-150.0,0.00029755,7]
[328911390,1717975864533,-3469.15430869,0.00029755,7]
[328911391,1717975864542,-474.0,0.0002976,15]
[328911392,1717975864694,-279128.90385308,0.00029761,7]
[328911393,1717975864705,-151.0,0.00029761,7]
[328911394,1717975864714,-194.63981,0.00029761,7]
[328911395,1717975864723,-497.519702,0.00029761,7]
[328911396,1717975864733,-497.519702,0.00029761,7]
[328911397,1717975864743,-151.0,0.00029761,7]
[328911398,1717975864753,-239.474144,0.00029761,7]
[328911399,1717975864762,-151.0,0.00029761,7]
[328911400,1717975864772,-151.0,0.00029761,7]
[328911401,1717975864782,-151.0,0.00029761,7]
[328911402,1717975864793,-151.0,0.00029761,7]
[328911403,1717975864803,-151.0,0.00029761,7]
[328911404,1717975864812,-151.0,0.00029761,7]
[328911405,1717975864823,-380.143332,0.00029761,7]
[328911406,1717975864833,-181.36342,0.00029761,7]
[328911407,1717975864843,-380.143332,0.00029761,7]
[328911408,1717975864854,-279128.90385308,0.00029761,7]
[328911409,1717975864864,-152.34438825,0.00029763,7]
[328911410,1717975864874,-688.96957899,0.00029764,7]
[328911411,1717975864885,-152.34438825,0.00029764,7]
[328911412,1717975864894,-400.0,0.0002977,2]
[328911413,1717975864904,-474.0,0.0002977,15]
[328911414,1717975864914,-730.0,0.00029773,2]
[328911415,1717975864924,-899.98408803,0.00029775,7]
[328911416,1717975864935,-286.09255549,0.00029778,7]
[328911417,1717975864945,-474.0,0.0002978,15]
[328911418,1717975864955,-150.0,0.00029781,7]
[328911419,1717975864965,-152.34438825,0.00029784,7]
[328911420,1717975864975,-308.61360611,0.00029789,20]
[328911421,1717975864985,-279128.90385308,0.00029791,7]
[328911422,1717975864995,-688.96957899,0.00029799,7]
[328911423,1717975865004,-899.98408803,0.000298,7]
[328911424,1717975865014,-150.0,0.000298,7]
[328911425,1717975865024,-156.55068707,0.000298,2]
[328911426,1717975865033,-9298.2987315,0.000298,2]
[328911427,1717975865043,-200220.0,0.000298,2]
[328911428,1717975865052,-500.0,0.000298,2]
[328911429,1717975865062,-1816.796339,0.000298,2]
[328911430,1717975865071,-2543.514875,0.000298,2]
[328911431,1717975865081,-2906.874143,0.000298,30]
[328911432,1717975865090,-2792.554158,0.000298,2]
[328911433,1717975865100,-3909.575822,0.000298,2]
[328911434,1717975865114,-4468.086654,0.000298,30]
[328911435,1717975865124,-1003.0,0.000298,18]
[328911436,1717975865133,-1699.992009,0.000298,2]
[328911437,1717975865143,-2379.988812,0.000298,2]
[328911438,1717975865153,-2719.987214,0.000298,30]
[328911439,1717975865163,-186.567116,0.000298,7]
[328911440,1717975865173,-497.519702,0.000298,7]
[328911441,1717975865186,-497.519702,0.000298,7]
[328911442,1717975865196,-625.0,0.000298,10]
[328911443,1717975865206,-151.0,0.000298,7]
[328911444,1717975865215,-151.0,0.000298,7]
[328911445,1717975865225,-151.0,0.000298,7]
[328911446,1717975865234,-151.0,0.000298,7]
[328911447,1717975865244,-151.0,0.000298,7]
[328911448,1717975865254,-288.829424,0.000298,7]
[328911449,1717975865264,-151.0,0.000298,7]
[328911450,1717975865274,-150.0,0.000298,6]
[328911451,1717975865284,-7089.12,0.000298,3]
[328911452,1717975865294,-7089.12,0.000298,3]
[328911453,1717975865303,-7089.12,0.000298,3]
[328911454,1717975865312,-7089.12,0.000298,3]
[328911455,1717975865322,-7089.12,0.000298,3]
[328911456,1717975865332,-7089.12,0.000298,3]
[328911457,1717975865341,-7089.12,0.000298,3]
[328911458,1717975865351,-7089.12,0.000298,3]
[328911459,1717975865360,-7089.12,0.000298,3]
[328911460,1717975865370,-7089.12,0.000298,3]
[328911461,1717975865380,-7089.12,0.000298,3]
[328911462,1717975865390,-7089.12,0.000298,3]
[328911463,1717975865399,-7089.12,0.000298,3]
[328911464,1717975865409,-7089.12,0.000298,3]
[328911465,1717975865418,-7089.12,0.000298,3]
[328911466,1717975865430,-7089.12,0.000298,3]
[328911467,1717975865440,-7089.12,0.000298,3]
[328911468,1717975865450,-7089.12,0.000298,3]
[328911469,1717975865460,-7089.12,0.000298,3]
[328911470,1717975865470,-7089.12,0.000298,3]
[328911471,1717975865479,-380.143332,0.000298,7]
[328911472,1717975865489,-181.36342,0.000298,7]
[328911473,1717975865499,-380.143332,0.000298,7]
[328911474,1717975865509,-474.0,0.0002981,15]
[328911475,1717975865519,-150.0,0.00029816,7]
[328911476,1717975865530,-474.0,0.0002982,15]
[328911477,1717975865541,-1989.19135123,0.00029822,11]
[328911478,1717975865551,-150.0,0.00029836,7]
[328911479,1717975865561,-150.0,0.00029847,7]
[328911480,1717975865573,-151.48930031,0.00029857,2]
[328911481,1717975865583,-150.0,0.00029867,7]
[328911482,1717975865593,-150.0,0.00029877,7]
[328911483,1717975865602,-754.181445,0.0002988,14]
[328911484,1717975865612,-475940.775615,0.0002988,2]
[328911485,1717975865622,-203003.94012207,0.0002988,2]
[328911486,1717975865633,-1681.0,0.0002988,15]
[328911487,1717975865644,-497.519702,0.0002988,7]
[328911488,1717975865653,-497.519702,0.0002988,7]
[328911489,1717975865663,-151.0,0.0002988,7]
[328911490,1717975865673,-151.0,0.0002988,7]
[328911491,1717975865684,-151.0,0.0002988,7]
[328911492,1717975865694,-151.0,0.0002988,7]
[328911493,1717975865705,-151.0,0.0002988,7]
[328911494,1717975865714,-151.0,0.0002988,7]
[328911495,1717975865724,-380.143332,0.0002988,7]
[328911496,1717975865735,-181.36342,0.0002988,7]
[328911497,1717975865746,-380.143332,0.0002988,7]
[328911498,1717975865756,-1679.0,0.0002989,15]
[328911499,1717975865767,-150.0,0.0002989,7]
[328911500,1717975865778,-58000.0,0.00029891,3]
[328911501,1717975865788,-5800.0,0.00029896,2]
[328911502,1717975865800,-998.9974,0.00029899,2]
[328911503,1717975865811,-4000.0,0.00029899,2]
[328911504,1717975865822,-4000.0,0.00029899,2]
[328911505,1717975865833,-4000.0,0.00029899,2]
[328911506,1717975865844,-4000.0,0.00029899,2]
[328911507,1717975865854,-4000.0,0.00029899,2]
[328911508,1717975865864,-1000.0,0.00029899,2]
[328911509,1717975865874,-1000.0,0.00029899,2]
[328911510,1717975865884,-29735.24931831,0.000299,2]
[328911511,1717975865894,-155.48644504,0.000299,2]
[328911512,1717975865903,-171.69,0.000299,7]
[328911513,1717975865914,-89353.92285262,0.000299,3]
[328911514,1717975865924,-106705.45200025,0.000299,3]
[328911515,1717975865935,-58000.0,0.000299,3]
[328911516,1717975865944,-5153.68410876,0.000299,3]
[328911517,1717975865954,-15084.60998741,0.000299,2]
[328911518,1717975865965,-151.0,0.000299,7]
[328911519,1717975865975,-151.0,0.000299,7]
[328911520,1717975865985,-151.0,0.000299,7]
[328911521,1717975865995,-151.0,0.000299,7]
[328911522,1717975866005,-159.29,0.000299,7]
[328911523,1717975866014,-151.0,0.000299,7]
[328911524,1717975866025,-323.44664399,0.000299,2]
[328911525,1717975866037,-380.143332,0.000299,7]
[328911526,1717975866047,-1989.19135123,0.000299,11]
[328911527,1717975866059,-181.36342,0.000299,7]
[328911528,1717975866069,-380.143332,0.000299,7]
[328911529,1717975866081,-5800.0,0.00029905,2]
[328911530,1717975866092,-153.62453956,0.00029909,2]
[328911531,1717975866104,-1483.79423978,0.0002991,3]
[328911532,1717975866116,-62543.30054703,0.0002991,3]
[328911533,1717975866126,-7204.96156552,0.0002991,3]
[328911534,1717975866137,-46678.31731678,0.0002991,2]
[328911535,1717975866149,-5800.0,0.00029913,2]
[328911536,1717975866160,-157.683312,0.00029925,7]
[328911537,1717975866170,-150.0,0.00029933,7]
[328911538,1717975866181,-150.0,0.00029939,7]
[328911539,1717975866190,-150.0,0.00029945,7]
[328911540,1717975866200,-153.56247761,0.00029953,2]
[328911541,1717975866209,-400.0,0.0002997,2]
[328911542,1717975866219,-400.0,0.0002997,2]
[328911543,1717975866230,-200.0,0.0002997,2]
[328911544,1717975866241,-480.0,0.0002997,15]
[328911545,1717975866252,-1037.0,0.00029977,2]
[328911546,1717975866262,-474.0,0.0002998,15]
[328911547,1717975866273,-495.89,0.0002998,2]
[328911548,1717975866282,-5400.0,0.0002999,27]
[328911549,1717975866292,-247.0,0.0002999,2]
[328911550,1717975866302,-203.0,0.0002999,2]
[328911551,1717975866314,-217.0,0.0002999,2]
[328911552,1717975866323,-230.0,0.0002999,2]
[328911553,1717975866335,-500.86366261,0.0002999,2]
[328911554,1717975866344,-2177.0,0.00029998,2]
[328911555,1717975866356,-210.52388124,0.00029998,2]
[328911556,1717975866367,-920.0,0.00029999,3]
[328911557,1717975866377,-3500.00000099,0.00029999,2]
[328911558,1717975866387,-4096.38587815,0.00029999,4]
[328911559,1717975866398,-5022.90937078,0.00029999,5]
[328911560,1717975866408,-1000.0,0.00029999,2]
[328911561,1717975866418,-4000.0,0.00029999,2]
[328911562,1717975866429,-559.37145481,0.00029999,2]
[328911563,1717975866439,-354.73728044,0.00029999,2]
[328911564,1717975866448,-551.1738469,0.00029999,2]
[328911565,1717975866458,-500.0,0.00029999,2]
[328911566,1717975866468,-472.71532019,0.00029999,2]
[328911567,1717975866479,-416.87799436,0.00029999,2]
[328911568,1717975866490,-236.21736295,0.00029999,2]
[328911569,1717975866502,-1000.0,0.00029999,2]
[328911570,1717975866513,-1000.0,0.00029999,3]
[328911571,1717975866523,-9702734.07687484,0.0003,2]
[328911572,1717975866733,-150.0,0.00027697,2]
[328911573,1717975866742,-150.0,0.00028375,2]
[328911574,1717975866752,-150.0,0.00028768,2]
[328911575,1717975866763,-1215.16,0.00029041,4]
[328911576,1717975866773,-1215.16,0.00029041,4]
[328911577,1717975866782,-1215.16,0.00029041,4]
[328911578,1717975866792,-181.36342,0.000291,7]
[328911579,1717975866802,-181.36342,0.00029289,7]
[328911580,1717975866811,-114139.94525856,0.0003,2]
[328911581,1717975866860,-150.0,0.00028196,2]
[328911582,1717975866869,-150.0,0.0002829,2]
[328911583,1717975866878,-150.0,0.00028499,2]
[328911584,1717975866888,-150.0,0.00029003,2]
[328911585,1717975866898,-81.33262632,0.00029041,4]
[328911586,1717976024139,2000.0,0.00014,2]
[328911587,1717976024168,2000.0,0.00014,2]
[328911588,1717976024200,2000.0,0.00014,2]
[328911589,1717976024226,2000.0,0.00014,2]
[328911590,1717976024254,2000.0,0.00014,2]
[328911591,1717976024464,2000.0,0.00014,2]
[328911592,1717976024494,2000.0,0.00014,2]
[328911593,1717976024521,2000.0,0.00014,2]
[328911594,1717976024547,2000.0,0.00014,2]
[328911595,1717976024575,1000.0,0.00014,2]
[328911596,1717976024604,150.0,0.00014,2]
[328911600,1717976069885,1978.61138425,0.00015,10]
[328911601,1717976071027,150.0,6.94e-05,2]
[328911602,1717976071053,150.0,6.94e-05,2]
[328911603,1717976071079,150.0,6.94e-05,2]
[328911604,1717976071104,150.0,6.94e-05,2]
[328911605,1717976071135,110.54313351,6.94e-05,2]
[328911608,1717976131747,150.0,0.000101,2]
[328911609,1717976131772,150.0,0.000101,2]
[328911610,1717976131796,150.0,0.000101,2]
[328911611,1717976131821,150.0,0.000101,2]
[328911612,1717976131845,150.0,0.000101,2]
[328911613,1717976131868,150.0,0.000101,2]
[328911614,1717976131894,150.0,0.000101,2]
[328911615,1717976131918,150.0,0.000101,2]
[328911616,1717976131942,150.0,0.000101,2]
[328911617,1717976131968,150.0,0.000101,2]
[328911618,1717976131993,150.0,0.000101,2]
[328911619,1717976132019,150.0,0.000101,2]
[328911620,1717976132044,150.0,0.000101,2]
[328911621,1717976132070,150.0,0.000101,2]
[328911622,1717976132094,269.22325157,0.000101,2]
[328911623,1717976132331,6495.8495814,0.000101,2]
[328911624,1717976156536,150.0,6.94e-05,2]
[328911625,1717976156561,5.0,6.94e-05,2]
[328911631,1717976546247,-150.0,0.00013491,2]
[328911632,1717976546299,-150.0,0.00013491,2]
[328911633,1717976546432,-150.0,0.00013491,2]
[328911634,1717976546557,-150.0,0.00013491,2]
[328911635,1717976549577,-150.0,0.00013491,2]
[328911636,1717976549799,-150.0,0.00013491,2]
[328911637,1717976550054,-150.0,0.00013491,2]
[328911638,1717976552850,-150.0,0.00013491,2]
[328911639,1717976553096,-150.0,0.00013491,2]
[328911640,1717976553205,-150.0,0.00013491,2]
[328911641,1717976556110,-150.0,0.00013491,2]
[328911642,1717976556320,-150.0,0.00013491,2]
[328911643,1717976556408,-150.0,0.00013491,2]
[328911644,1717976559395,-295.0,0.00013491,2]
[328911647,1717976570048,-750.0,0.0001349,2]
[328911650,1717976623538,-901.642159,0.00013324,2]
[328911651,1717976623564,-195.91943217,0.00013391,2]
[328911652,1717976685916,-453.33042599,0.00013486,2]
[328911653,1717976695920,449.12248201,0.00013486,2]
[328911654,1717976702919,150.0,0.00012458,2]
[328911655,1717976702951,150.0,0.00012458,2]
[328911656,1717976702977,112.94517341,0.00012458,2]
[328911660,1717976851171,-222.35127328,0.00013414,2]
[328911663,1717976953117,-10537.36464,0.00013477,2]
[328911664,1717976953141,-5582.53863772,0.00013478,2]
[328911665,1717976953167,-150.0,0.0001348,2]
[328911666,1717976953190,-2252.96636622,0.00013481,2]
[328911667,1717976953229,-2259.03363378,0.00013481,2]
[328911668,1717976953256,-346.69779116,0.000139,2]
[328911669,1717976953280,-150.0,0.00013973,2]
[328911670,1717976953306,-151.89,0.0001399,2]
[328911671,1717976953337,-151.89,0.0001399,2]
[328911672,1717976953361,-3861.62006134,0.0001399,2]
[328911673,1717976953386,-320.08,0.0001399,3]
[328911674,1717976953408,-1210.83491736,0.00013998,2]
[328911675,1717976953433,-235.10641019,0.00013998,2]
[328911676,1717976953457,-398.2988159,0.00013998,2]
[328911677,1717976953481,-339.79,0.00013998,2]
[328911678,1717976953504,-207.15743022,0.00013999,2]
[328911679,1717976953533,-7669.52650718,0.00014,2]
[328911681,1717976956119,-11400.56495443,0.00014,2]
[328911682,1717976958114,-851.41131169,0.00014,2]
[328911694,1717977033343,-3843.32508297,0.000139,2]
[328911695,1717977033366,-2346.13088512,0.000139,2]
[328911696,1717977033949,-2673.6187627,0.000139,2]
[328911697,1717977033960,-448.9976395,0.000139,2]
[328911698,1717977033970,-151.9,0.0001399,2]
[328911699,1717977033980,-1591.59706497,0.00013999,2]
[328911700,1717977033990,-5269.19173997,0.00013999,2]
[328911701,1717977034000,-18346.35087058,0.00014,2]
[328911702,1717977038550,-16958.54404651,0.00014,2]
[328911704,1717977038563,-1001.63044653,0.00014,2]
[328911705,1717977038574,-10312.64728852,0.00014,2]
[328911706,1717977038587,-1427.85452135,0.00014,2]
[328911707,1717977039221,-5403.48247186,0.00014,2]
[328911708,1717977039234,-9840.98129079,0.00014,2]
[328911709,1717977039247,-3275.23508451,0.00014,2]